[Event "Titled Tuesday Blitz November 15 Early 2022"]
[White "Vokhidov, Shamsiddin"]
[Black "Paravyan, David"]
[WhiteFideId "14204223"]
[BlackFideId "4194985"]
[WhiteElo "2619"]
[BlackElo "2546"]
[Result "1/2-1/2"]
[Round "07"]
[TimeControl "180+1"]
[Date "2022.11.15"]
[WhiteClock "0:00:17"]
[BlackClock "0:00:16"]

1. e4 {[%clk 0:03:00]}  e5 {[%clk 0:02:58]} 2. Nf3 {[%clk 0:03:00]}  Nf6 {[%clk 0:02:59]} 3. Nxe5 {[%clk 0:02:59]}  d6 {[%clk 0:02:59]} 4. Nf3 {[%clk 0:03:00]}  Nxe4 {[%clk 0:02:59]} 5. d4 {[%clk 0:03:01]}  d5 {[%clk 0:02:58]} 6. Bd3 {[%clk 0:03:01]}  Bd6 {[%clk 0:02:58]} 7. O-O {[%clk 0:03:01]}  O-O {[%clk 0:02:58]} 8. c4 {[%clk 0:03:02]}  c6 {[%clk 0:02:59]} 9. Re1 {[%clk 0:03:00]}  Bf5 {[%clk 0:02:58]} 10. Qb3 {[%clk 0:03:00]}  Na6 {[%clk 0:02:56]} 11. cxd5 {[%clk 0:02:34]}  cxd5 {[%clk 0:02:54]} 12. Nc3 {[%clk 0:02:26]}  Nb4 {[%clk 0:02:53]} 13. Bxe4 {[%clk 0:02:06]}  dxe4 {[%clk 0:02:54]} 14. Nxe4 {[%clk 0:02:07]}  Be6 {[%clk 0:02:51]} 15. Qd1 {[%clk 0:02:07]}  Rc8 {[%clk 0:02:47]} 16. Bg5 {[%clk 0:01:45]}  Qb6 {[%clk 0:02:45]} 17. d5 {[%clk 0:01:33]}  Nxd5 {[%clk 0:02:33]} 18. Nxd6 {[%clk 0:01:33]}  Qxd6 {[%clk 0:02:34]} 19. Nd4 {[%clk 0:01:29]}  Rfe8 {[%clk 0:02:29]} 20. Nxe6 {[%clk 0:01:28]}  Rxe6 {[%clk 0:02:29]} 21. Rxe6 {[%clk 0:01:26]}  Qxe6 {[%clk 0:02:29]} 22. Rc1 {[%clk 0:01:24]}  Rxc1 {[%clk 0:02:23]} 23. Bxc1 {[%clk 0:01:25]}  h6 {[%clk 0:02:20]} 24. a3 {[%clk 0:01:24]}  a6 {[%clk 0:02:17]} 25. h3 {[%clk 0:01:23]}  Kf8 {[%clk 0:02:09]} 26. Kf1 {[%clk 0:01:23]}  Ke8 {[%clk 0:02:08]} 27. Qe2 {[%clk 0:01:22]}  Kd7 {[%clk 0:02:06]} 28. Qxe6+ {[%clk 0:01:22]}  Kxe6 {[%clk 0:02:07]} 29. Ke2 {[%clk 0:01:23]}  Ne7 {[%clk 0:01:47]} 30. Bd2 {[%clk 0:01:19]}  Kd5 {[%clk 0:01:46]} 31. Bb4 {[%clk 0:01:16]}  Nc6 {[%clk 0:01:43]} 32. Bf8 {[%clk 0:01:16]}  Nd4+ {[%clk 0:01:44]} 33. Ke3 {[%clk 0:01:10]}  Ne6 {[%clk 0:01:43]} 34. Bb4 {[%clk 0:01:09]}  f5 {[%clk 0:01:41]} 35. Bc3 {[%clk 0:01:06]}  g6 {[%clk 0:01:35]} 36. g4 {[%clk 0:00:58]}  Kc4 {[%clk 0:01:34]} 37. gxf5 {[%clk 0:00:55]}  gxf5 {[%clk 0:01:35]} 38. Be5 {[%clk 0:00:50]}  b5 {[%clk 0:01:19]} 39. Bf6 {[%clk 0:00:43]}  a5 {[%clk 0:01:16]} 40. Be5 {[%clk 0:00:43]}  b4 {[%clk 0:01:13]} 41. axb4 {[%clk 0:00:43]}  axb4 {[%clk 0:01:12]} 42. Bf6 {[%clk 0:00:39]}  h5 {[%clk 0:01:10]} 43. Be5 {[%clk 0:00:30]}  Ng5 {[%clk 0:01:06]} 44. h4 {[%clk 0:00:27]}  Ne6 {[%clk 0:01:05]} 45. Bf6 {[%clk 0:00:26]}  Kd5 {[%clk 0:01:01]} 46. f3 {[%clk 0:00:22]}  f4+ {[%clk 0:00:54]} 47. Kd2 {[%clk 0:00:22]}  Kc4 {[%clk 0:00:53]} 48. Be5 {[%clk 0:00:21]}  b3 {[%clk 0:00:44]} 49. Bf6 {[%clk 0:00:20]}  Nd4 {[%clk 0:00:17]} 50. Bxd4 {[%clk 0:00:17]}  Kxd4 {[%clk 0:00:18]} 51. Ke2 {[%clk 0:00:17]}  Kc4 {[%clk 0:00:16]} 1/2-1/2


[Site "https://www.chess.com"]

[Event "Titled Tuesday Blitz November 15 Early 2022"]
[White "Wagner, Dennis"]
[Black "D`Arruda, Ricardo D."]
[WhiteFideId "24650684"]
[BlackFideId "100692"]
[WhiteElo "2470"]
[BlackElo "2481"]
[Result "0-1"]
[Round "07"]
[TimeControl "180+1"]
[Date "2022.11.16"]
[WhiteClock "0:00:01"]
[BlackClock "0:00:12"]

1. e4 {[%clk 0:03:00]}  c5 {[%clk 0:02:59]} 2. Nf3 {[%clk 0:03:01]}  Nc6 {[%clk 0:02:58]} 3. Bb5 {[%clk 0:03:00]}  g6 {[%clk 0:02:57]} 4. Bxc6 {[%clk 0:02:59]}  dxc6 {[%clk 0:02:58]} 5. d3 {[%clk 0:02:59]}  c4 {[%clk 0:02:59]} 6. dxc4 {[%clk 0:02:56]}  Qxd1+ {[%clk 0:02:59]} 7. Kxd1 {[%clk 0:02:56]}  Nf6 {[%clk 0:02:58]} 8. Nc3 {[%clk 0:02:53]}  Bg7 {[%clk 0:02:58]} 9. h3 {[%clk 0:02:09]}  Be6 {[%clk 0:02:56]} 10. Nd2 {[%clk 0:02:09]}  O-O-O {[%clk 0:02:54]} 11. Ke2 {[%clk 0:02:09]}  Nh5 {[%clk 0:02:51]} 12. g3 {[%clk 0:02:04]}  f5 {[%clk 0:02:51]} 13. Rb1 {[%clk 0:01:58]}  Bxc3 {[%clk 0:02:45]} 14. bxc3 {[%clk 0:01:57]}  fxe4 {[%clk 0:02:46]} 15. c5 {[%clk 0:01:45]}  a6 {[%clk 0:02:30]} 16. c4 {[%clk 0:01:42]}  Rhf8 {[%clk 0:02:24]} 17. Bb2 {[%clk 0:01:36]}  Rxd2+ {[%clk 0:02:17]} 18. Kxd2 {[%clk 0:01:36]}  Rxf2+ {[%clk 0:02:17]} 19. Kc3 {[%clk 0:01:21]}  Nxg3 {[%clk 0:02:13]} 20. Rhe1 {[%clk 0:01:20]}  Bxh3 {[%clk 0:02:03]} 21. Kb4 {[%clk 0:01:04]}  Bf5 {[%clk 0:01:45]} 22. Ka5 {[%clk 0:01:03]}  Rxc2 {[%clk 0:01:41]} 23. Kb6 {[%clk 0:01:03]}  h5 {[%clk 0:01:25]} 24. Be5 {[%clk 0:01:02]}  h4 {[%clk 0:01:13]} 25. Rbd1 {[%clk 0:00:57]}  Rxc4 {[%clk 0:01:09]} 26. Rd2 {[%clk 0:00:50]}  Rb4+ {[%clk 0:01:07]} 27. Ka7 {[%clk 0:00:50]}  Be6 {[%clk 0:00:59]} 28. Bxg3 {[%clk 0:00:26]}  hxg3 {[%clk 0:00:58]} 29. Re3 {[%clk 0:00:26]}  Rc4 {[%clk 0:00:39]} 30. Rxg3 {[%clk 0:00:26]}  Bf5 {[%clk 0:00:39]} 31. Rb3 {[%clk 0:00:19]}  Rxc5 {[%clk 0:00:25]} 32. Rxb7 {[%clk 0:00:20]}  Rb5 {[%clk 0:00:24]} 33. Rxe7 {[%clk 0:00:18]}  Rd5 {[%clk 0:00:20]} 34. Rc2 {[%clk 0:00:03]}  c5 {[%clk 0:00:19]} 35. Kb6 {[%clk 0:00:03]}  Kd8 {[%clk 0:00:18]} 36. Rg7 {[%clk 0:00:03]}  e3 {[%clk 0:00:18]} 37. Rh2 {[%clk 0:00:02]}  Re5 {[%clk 0:00:13]} 38. Kc6 {[%clk 0:00:02]}  e2 {[%clk 0:00:12]} 39. Rh8+ {[%clk 0:00:01]}  Re8 {[%clk 0:00:12]} 0-1


[Site "https://www.chess.com"]

[Event "Titled Tuesday Blitz November 15 Early 2022"]
[White "Willow, Jonah B"]
[Black "Pranav, V"]
[WhiteFideId "438804"]
[BlackFideId "25060783"]
[WhiteElo "2300"]
[BlackElo "2430"]
[Result "1/2-1/2"]
[Round "07"]
[TimeControl "180+1"]
[Date "2022.11.15"]
[WhiteClock "0:00:02"]
[BlackClock "0:00:03"]

1. e4 {[%clk 0:03:00]}  e5 {[%clk 0:02:59]} 2. Nf3 {[%clk 0:03:00]}  Nc6 {[%clk 0:03:00]} 3. Nc3 {[%clk 0:03:01]}  Nf6 {[%clk 0:03:00]} 4. Bb5 {[%clk 0:03:02]}  Bb4 {[%clk 0:02:58]} 5. O-O {[%clk 0:03:01]}  O-O {[%clk 0:02:58]} 6. d3 {[%clk 0:03:01]}  d6 {[%clk 0:02:58]} 7. Bg5 {[%clk 0:03:01]}  Bxc3 {[%clk 0:02:58]} 8. bxc3 {[%clk 0:03:01]}  Qe7 {[%clk 0:02:58]} 9. Re1 {[%clk 0:03:01]}  Nd8 {[%clk 0:02:58]} 10. d4 {[%clk 0:03:01]}  Ne6 {[%clk 0:02:58]} 11. Bd2 {[%clk 0:02:55]}  Rd8 {[%clk 0:02:56]} 12. Nh4 {[%clk 0:02:54]}  g6 {[%clk 0:02:52]} 13. Nf3 {[%clk 0:02:41]}  Nh5 {[%clk 0:02:44]} 14. Bf1 {[%clk 0:02:37]}  Nef4 {[%clk 0:02:37]} 15. Rb1 {[%clk 0:02:00]}  Qf6 {[%clk 0:02:31]} 16. g3 {[%clk 0:01:54]}  Ne6 {[%clk 0:02:12]} 17. Bg2 {[%clk 0:01:48]}  Re8 {[%clk 0:02:08]} 18. Be3 {[%clk 0:01:41]}  Nf8 {[%clk 0:02:00]} 19. Nd2 {[%clk 0:01:39]}  b6 {[%clk 0:01:45]} 20. Bf1 {[%clk 0:01:33]}  c5 {[%clk 0:01:44]} 21. d5 {[%clk 0:01:32]}  Nf4 {[%clk 0:01:36]} 22. Nc4 {[%clk 0:01:21]}  Bd7 {[%clk 0:01:24]} 23. Kh1 {[%clk 0:01:03]}  Nh3 {[%clk 0:01:18]} 24. Qd2 {[%clk 0:00:51]}  b5 {[%clk 0:01:14]} 25. Na5 {[%clk 0:00:50]}  a6 {[%clk 0:01:08]} 26. c4 {[%clk 0:00:50]}  g5 {[%clk 0:00:55]} 27. Rb3 {[%clk 0:00:39]}  h6 {[%clk 0:00:52]} 28. Nc6 {[%clk 0:00:29]}  bxc4 {[%clk 0:00:47]} 29. Rc3 {[%clk 0:00:24]}  Ng6 {[%clk 0:00:47]} 30. Rxc4 {[%clk 0:00:19]}  Bg4 {[%clk 0:00:46]} 31. Bg2 {[%clk 0:00:16]}  Bf3 {[%clk 0:00:40]} 32. Qd3 {[%clk 0:00:15]}  g4 {[%clk 0:00:37]} 33. Qf1 {[%clk 0:00:15]}  h5 {[%clk 0:00:36]} 34. Bxf3 {[%clk 0:00:15]}  Qxf3+ {[%clk 0:00:36]} 35. Qg2 {[%clk 0:00:16]}  Qf6 {[%clk 0:00:36]} 36. Rc3 {[%clk 0:00:15]}  Ne7 {[%clk 0:00:19]} 37. Nxe7+ {[%clk 0:00:15]}  Rxe7 {[%clk 0:00:20]} 38. Rf1 {[%clk 0:00:14]}  c4 {[%clk 0:00:15]} 39. f3 {[%clk 0:00:14]}  Qg6 {[%clk 0:00:14]} 40. fxg4 {[%clk 0:00:13]}  hxg4 {[%clk 0:00:15]} 41. Bg1 {[%clk 0:00:10]}  Rc8 {[%clk 0:00:14]} 42. Qe2 {[%clk 0:00:10]}  Ng5 {[%clk 0:00:12]} 43. Rf5 {[%clk 0:00:10]}  Nf3 {[%clk 0:00:10]} 44. Rcxf3 {[%clk 0:00:10]}  gxf3 {[%clk 0:00:10]} 45. Qxf3 {[%clk 0:00:11]}  f6 {[%clk 0:00:06]} 46. Rxf6 {[%clk 0:00:11]}  Qg7 {[%clk 0:00:07]} 47. Be3 {[%clk 0:00:11]}  Rf7 {[%clk 0:00:06]} 48. Rxf7 {[%clk 0:00:08]}  Qxf7 {[%clk 0:00:07]} 49. Qg4+ {[%clk 0:00:09]}  Kh7 {[%clk 0:00:08]} 50. Qh3+ {[%clk 0:00:08]}  Kg7 {[%clk 0:00:07]} 51. Qg4+ {[%clk 0:00:06]}  Kh7 {[%clk 0:00:04]} 52. Qh3+ {[%clk 0:00:05]}  Kg7 {[%clk 0:00:03]} 53. Qg4+ {[%clk 0:00:02]}  Kh7 {[%clk 0:00:03]} 1/2-1/2


[Site "https://www.chess.com"]

[Event "Titled Tuesday Blitz November 15 Early 2022"]
[White "Yeremyan, Alen"]
[Black "Malka, Samuel"]
[WhiteFideId "13308998"]
[BlackFideId "20643675"]
[WhiteElo "2159"]
[BlackElo "2470"]
[Result "1/2-1/2"]
[Round "07"]
[TimeControl "180+1"]
[Date "2022.11.16"]
[WhiteClock "0:00:11"]
[BlackClock "0:00:06"]

1. h3 {[%clk 0:03:00]}  d5 {[%clk 0:02:57]} 2. g3 {[%clk 0:02:58]}  c5 {[%clk 0:02:53]} 3. Bg2 {[%clk 0:02:52]}  e5 {[%clk 0:02:52]} 4. c4 {[%clk 0:02:48]}  d4 {[%clk 0:02:51]} 5. d3 {[%clk 0:02:49]}  h6 {[%clk 0:02:51]} 6. Nf3 {[%clk 0:02:49]}  Nc6 {[%clk 0:02:51]} 7. O-O {[%clk 0:02:50]}  Bd6 {[%clk 0:02:43]} 8. e3 {[%clk 0:02:51]}  Nge7 {[%clk 0:02:42]} 9. exd4 {[%clk 0:02:51]}  exd4 {[%clk 0:02:39]} 10. b4 {[%clk 0:02:52]}  Nxb4 {[%clk 0:02:30]} 11. a3 {[%clk 0:02:42]}  Nbc6 {[%clk 0:02:30]} 12. Nbd2 {[%clk 0:02:43]}  f5 {[%clk 0:02:21]} 13. Nh4 {[%clk 0:02:39]}  O-O {[%clk 0:02:18]} 14. f4 {[%clk 0:02:38]}  Kh7 {[%clk 0:01:59]} 15. Re1 {[%clk 0:02:36]}  Qc7 {[%clk 0:01:52]} 16. Ndf3 {[%clk 0:02:32]}  g6 {[%clk 0:01:31]} 17. Bd2 {[%clk 0:02:27]}  Bd7 {[%clk 0:01:31]} 18. Re2 {[%clk 0:02:27]}  Rae8 {[%clk 0:01:31]} 19. Qf1 {[%clk 0:02:26]}  Ng8 {[%clk 0:01:30]} 20. Rae1 {[%clk 0:02:27]}  Rxe2 {[%clk 0:01:29]} 21. Rxe2 {[%clk 0:02:27]}  Re8 {[%clk 0:01:29]} 22. Qe1 {[%clk 0:02:24]}  Rxe2 {[%clk 0:01:26]} 23. Qxe2 {[%clk 0:02:25]}  Nf6 {[%clk 0:01:21]} 24. Kh1 {[%clk 0:02:16]}  Qd8 {[%clk 0:01:20]} 25. Ne5 {[%clk 0:02:13]}  Nh5 {[%clk 0:01:16]} 26. Kh2 {[%clk 0:02:11]}  Bxe5 {[%clk 0:01:14]} 27. fxe5 {[%clk 0:02:10]}  Qe7 {[%clk 0:01:11]} 28. Bxc6 {[%clk 0:01:55]}  bxc6 {[%clk 0:00:58]} 29. Ng2 {[%clk 0:01:46]}  Ng7 {[%clk 0:00:53]} 30. Nf4 {[%clk 0:01:41]}  Ne6 {[%clk 0:00:51]} 31. Nxe6 {[%clk 0:01:38]}  Qxe6 {[%clk 0:00:48]} 32. h4 {[%clk 0:01:37]}  Qe7 {[%clk 0:00:40]} 33. Bf4 {[%clk 0:01:35]}  Be6 {[%clk 0:00:37]} 34. Bc1 {[%clk 0:01:29]}  Qb7 {[%clk 0:00:35]} 35. Qd2 {[%clk 0:01:30]}  Qg7 {[%clk 0:00:32]} 36. Qe1 {[%clk 0:01:27]}  Qf7 {[%clk 0:00:30]} 37. Qa5 {[%clk 0:01:24]}  g5 {[%clk 0:00:20]} 38. Qxc5 {[%clk 0:01:16]}  gxh4 {[%clk 0:00:20]} 39. gxh4 {[%clk 0:01:16]}  f4 {[%clk 0:00:20]} 40. Qxd4 {[%clk 0:01:16]}  f3 {[%clk 0:00:20]} 41. Be3 {[%clk 0:01:10]}  Qf5 {[%clk 0:00:20]} 42. Qe4 {[%clk 0:00:22]}  Kg6 {[%clk 0:00:11]} 43. Qxf5+ {[%clk 0:00:18]}  Kxf5 {[%clk 0:00:11]} 44. Bxa7 {[%clk 0:00:19]}  Kxe5 {[%clk 0:00:10]} 45. Kg3 {[%clk 0:00:20]}  Bf5 {[%clk 0:00:08]} 46. Be3 {[%clk 0:00:14]}  Bxd3 {[%clk 0:00:08]} 47. Bxh6 {[%clk 0:00:14]}  Bxc4 {[%clk 0:00:05]} 48. Kxf3 {[%clk 0:00:14]}  Bf7 {[%clk 0:00:05]} 49. Be3 {[%clk 0:00:14]}  Kd5 {[%clk 0:00:05]} 50. Ke2 {[%clk 0:00:13]}  Kc4 {[%clk 0:00:04]} 51. Kd2 {[%clk 0:00:13]}  Kb5 {[%clk 0:00:04]} 52. Kc3 {[%clk 0:00:13]}  c5 {[%clk 0:00:04]} 53. Kd3 {[%clk 0:00:13]}  c4+ {[%clk 0:00:04]} 54. Kd4 {[%clk 0:00:13]}  Ka4 {[%clk 0:00:04]} 55. Bc1 {[%clk 0:00:10]}  Kb3 {[%clk 0:00:05]} 56. a4 {[%clk 0:00:09]}  Kxa4 {[%clk 0:00:04]} 57. Kc3 {[%clk 0:00:10]}  Kb5 {[%clk 0:00:05]} 58. Bg5 {[%clk 0:00:11]}  Kc6 {[%clk 0:00:05]} 59. Bf6 {[%clk 0:00:11]}  Kd5 {[%clk 0:00:05]} 60. Bg5 {[%clk 0:00:12]}  Bh5 {[%clk 0:00:05]} 61. Bf4 {[%clk 0:00:10]}  Bg6 {[%clk 0:00:05]} 62. Bg5 {[%clk 0:00:11]}  Bh5 {[%clk 0:00:06]} 63. Kd2 {[%clk 0:00:09]}  Bg6 {[%clk 0:00:06]} 64. Ke3 {[%clk 0:00:10]}  Bh5 {[%clk 0:00:07]} 65. Bf6 {[%clk 0:00:10]}  Bg6 {[%clk 0:00:06]} 66. Bc3 {[%clk 0:00:10]}  Bh5 {[%clk 0:00:06]} 67. Kf4 {[%clk 0:00:11]}  Bd1 {[%clk 0:00:07]} 68. Kg5 {[%clk 0:00:11]}  Be2 {[%clk 0:00:07]} 69. Bf6 {[%clk 0:00:11]}  Ke4 {[%clk 0:00:06]} 70. h5 {[%clk 0:00:11]}  Bxh5 {[%clk 0:00:06]} 71. Kxh5 {[%clk 0:00:12]}  Kd3 {[%clk 0:00:06]} 72. Kg5 {[%clk 0:00:11]}  c3 {[%clk 0:00:06]} 73. Bxc3 {[%clk 0:00:11]} 1/2-1/2


[Site "https://www.chess.com"]

[Event "Titled Tuesday Blitz November 15 Early 2022"]
[White "Yu, Yangyi"]
[Black "Salinas Herrera, Pablo"]
[WhiteFideId "8603820"]
[BlackFideId "3407128"]
[WhiteElo "2808"]
[BlackElo "2557"]
[Result "1-0"]
[Round "07"]
[TimeControl "180+1"]
[Date "2022.11.15"]
[WhiteClock "0:01:48"]
[BlackClock "0:00:46"]

1. e4 {[%clk 0:03:00]}  e5 {[%clk 0:02:58]} 2. Nf3 {[%clk 0:03:00]}  Nc6 {[%clk 0:02:58]} 3. Bb5 {[%clk 0:03:01]}  a6 {[%clk 0:02:58]} 4. Ba4 {[%clk 0:03:01]}  Nf6 {[%clk 0:02:59]} 5. O-O {[%clk 0:03:00]}  d6 {[%clk 0:02:59]} 6. Re1 {[%clk 0:02:59]}  g6 {[%clk 0:02:59]} 7. d4 {[%clk 0:02:59]}  Bd7 {[%clk 0:02:50]} 8. Bxc6 {[%clk 0:02:53]}  Bxc6 {[%clk 0:02:49]} 9. dxe5 {[%clk 0:02:53]}  Nxe4 {[%clk 0:02:48]} 10. Nbd2 {[%clk 0:02:49]}  Nxd2 {[%clk 0:02:35]} 11. Bxd2 {[%clk 0:01:58]}  Be7 {[%clk 0:02:34]} 12. exd6 {[%clk 0:01:53]}  Qxd6 {[%clk 0:02:34]} 13. Bg5 {[%clk 0:01:51]}  O-O-O {[%clk 0:00:46]} 14. Bxe7 {[%clk 0:01:49]}  Qxd1 {[%clk 0:00:45]} 15. Raxd1 {[%clk 0:01:49]}  Rxd1 {[%clk 0:00:45]} 16. Rxd1 {[%clk 0:01:49]}  Re8 {[%clk 0:00:46]} 17. Bg5 {[%clk 0:01:48]} 1-0


[Site "https://www.chess.com"]

[Event "Titled Tuesday Blitz November 15 Early 2022"]
[White "Yuan, Qingyu"]
[Black "Biastoch, Bennet"]
[WhiteFideId "8609772"]
[BlackFideId "12939889"]
[WhiteElo "2359"]
[BlackElo "2221"]
[Result "1-0"]
[Round "07"]
[TimeControl "180+1"]
[Date "2022.11.16"]
[WhiteClock "0:00:57"]
[BlackClock "0:00:22"]

1. e4 {[%clk 0:03:00]}  c5 {[%clk 0:02:59]} 2. Nf3 {[%clk 0:03:00]}  Nc6 {[%clk 0:03:00]} 3. Bc4 {[%clk 0:03:00]}  e6 {[%clk 0:02:59]} 4. O-O {[%clk 0:03:01]}  d5 {[%clk 0:02:57]} 5. Bb5 {[%clk 0:03:00]}  a6 {[%clk 0:02:56]} 6. Bxc6+ {[%clk 0:02:59]}  bxc6 {[%clk 0:02:57]} 7. d3 {[%clk 0:02:58]}  Ne7 {[%clk 0:02:56]} 8. Qe2 {[%clk 0:02:57]}  Ng6 {[%clk 0:02:56]} 9. e5 {[%clk 0:02:54]}  Be7 {[%clk 0:02:56]} 10. b3 {[%clk 0:02:46]}  O-O {[%clk 0:02:55]} 11. c4 {[%clk 0:02:47]}  a5 {[%clk 0:02:52]} 12. Nc3 {[%clk 0:02:46]}  f6 {[%clk 0:02:43]} 13. Ba3 {[%clk 0:02:02]}  fxe5 {[%clk 0:02:36]} 14. Nxe5 {[%clk 0:02:00]}  Nxe5 {[%clk 0:02:36]} 15. Qxe5 {[%clk 0:02:01]}  Bf6 {[%clk 0:02:36]} 16. Qe1 {[%clk 0:02:01]}  Bd4 {[%clk 0:02:30]} 17. Rd1 {[%clk 0:01:59]}  Bd7 {[%clk 0:02:07]} 18. Na4 {[%clk 0:01:51]}  Qe7 {[%clk 0:01:59]} 19. Rc1 {[%clk 0:01:51]}  Qg5 {[%clk 0:01:07]} 20. Bxc5 {[%clk 0:01:41]}  Rf4 {[%clk 0:00:46]} 21. Bxd4 {[%clk 0:01:27]}  Rxd4 {[%clk 0:00:45]} 22. Qe3 {[%clk 0:01:26]}  Qxe3 {[%clk 0:00:43]} 23. fxe3 {[%clk 0:01:26]}  Rxd3 {[%clk 0:00:44]} 24. Nc5 {[%clk 0:01:26]}  Rxe3 {[%clk 0:00:39]} 25. Nxd7 {[%clk 0:01:26]}  Rd8 {[%clk 0:00:40]} 26. Nc5 {[%clk 0:01:11]}  d4 {[%clk 0:00:40]} 27. Rfe1 {[%clk 0:01:06]}  e5 {[%clk 0:00:28]} 28. Rxe3 {[%clk 0:01:05]}  dxe3 {[%clk 0:00:29]} 29. Re1 {[%clk 0:01:05]}  Rd2 {[%clk 0:00:27]} 30. a3 {[%clk 0:00:56]}  Ra2 {[%clk 0:00:25]} 31. a4 {[%clk 0:00:57]}  e2 {[%clk 0:00:22]} 32. Kf2 {[%clk 0:00:57]} 1-0


[Site "https://www.chess.com"]

[Event "Titled Tuesday Blitz November 15 Early 2022"]
[White "Zacurdajev, Dmitry"]
[Black "Nielsen, Viktor Haarmark"]
[WhiteFideId "4196309"]
[BlackFideId "1444492"]
[WhiteElo "2179"]
[BlackElo "2345"]
[Result "0-1"]
[Round "07"]
[TimeControl "180+1"]
[Date "2022.11.16"]
[WhiteClock "0:00:04"]
[BlackClock "0:00:05"]

1. d4 {[%clk 0:03:00]}  d5 {[%clk 0:02:57]} 2. c4 {[%clk 0:03:01]}  c6 {[%clk 0:02:57]} 3. Nc3 {[%clk 0:03:00]}  Nf6 {[%clk 0:02:58]} 4. Nf3 {[%clk 0:03:01]}  e6 {[%clk 0:02:58]} 5. Bg5 {[%clk 0:03:01]}  Nbd7 {[%clk 0:02:58]} 6. e3 {[%clk 0:02:59]}  Qa5 {[%clk 0:02:58]} 7. Qc2 {[%clk 0:02:50]}  Bb4 {[%clk 0:02:57]} 8. Nd2 {[%clk 0:02:35]}  O-O {[%clk 0:02:34]} 9. Nb3 {[%clk 0:02:21]}  Qa4 {[%clk 0:02:23]} 10. cxd5 {[%clk 0:01:35]}  exd5 {[%clk 0:02:20]} 11. Bd3 {[%clk 0:01:33]}  Re8 {[%clk 0:02:09]} 12. O-O {[%clk 0:01:29]}  Bxc3 {[%clk 0:02:09]} 13. bxc3 {[%clk 0:01:21]}  Ne4 {[%clk 0:02:08]} 14. Bxe4 {[%clk 0:01:14]}  Rxe4 {[%clk 0:01:54]} 15. f3 {[%clk 0:01:09]}  Re8 {[%clk 0:01:53]} 16. e4 {[%clk 0:01:08]}  dxe4 {[%clk 0:01:40]} 17. fxe4 {[%clk 0:01:09]}  c5 {[%clk 0:01:28]} 18. Qf2 {[%clk 0:00:42]}  f6 {[%clk 0:01:27]} 19. e5 {[%clk 0:00:34]}  Rf8 {[%clk 0:01:04]} 20. exf6 {[%clk 0:00:29]}  Nxf6 {[%clk 0:01:03]} 21. Nxc5 {[%clk 0:00:27]}  Qc4 {[%clk 0:01:02]} 22. Qg3 {[%clk 0:00:16]}  Nd7 {[%clk 0:00:14]} 23. Bh6 {[%clk 0:00:16]}  Rf7 {[%clk 0:00:11]} 24. Rxf7 {[%clk 0:00:12]}  Qxf7 {[%clk 0:00:12]} 25. Rf1 {[%clk 0:00:13]}  Qg6 {[%clk 0:00:11]} 26. Qxg6 {[%clk 0:00:06]}  hxg6 {[%clk 0:00:12]} 27. Nxd7 {[%clk 0:00:04]}  Bxd7 {[%clk 0:00:13]} 28. Bg5 {[%clk 0:00:03]}  Rc8 {[%clk 0:00:13]} 29. Rf3 {[%clk 0:00:04]}  Be6 {[%clk 0:00:13]} 30. a3 {[%clk 0:00:03]}  Bd5 {[%clk 0:00:13]} 31. Re3 {[%clk 0:00:04]}  b5 {[%clk 0:00:13]} 32. Be7 {[%clk 0:00:03]}  a6 {[%clk 0:00:12]} 33. Bc5 {[%clk 0:00:03]}  Rc7 {[%clk 0:00:11]} 34. Re8+ {[%clk 0:00:03]}  Kf7 {[%clk 0:00:10]} 35. Rf8+ {[%clk 0:00:02]}  Ke6 {[%clk 0:00:10]} 36. Re8+ {[%clk 0:00:03]}  Kf7 {[%clk 0:00:10]} 37. Re5 {[%clk 0:00:03]}  Rd7 {[%clk 0:00:09]} 38. Kf2 {[%clk 0:00:04]}  Be6 {[%clk 0:00:07]} 39. g3 {[%clk 0:00:04]}  Rd5 {[%clk 0:00:07]} 40. Re3 {[%clk 0:00:04]}  Rf5+ {[%clk 0:00:07]} 41. Ke1 {[%clk 0:00:04]}  Bc4 {[%clk 0:00:07]} 42. Kd2 {[%clk 0:00:05]}  Rf2+ {[%clk 0:00:07]} 43. Ke1 {[%clk 0:00:05]}  Rf1+ {[%clk 0:00:06]} 44. Kd2 {[%clk 0:00:04]}  Rf2+ {[%clk 0:00:07]} 45. Kd1 {[%clk 0:00:04]}  Rxh2 {[%clk 0:00:05]} 46. Re7+ {[%clk 0:00:04]}  Kf6 {[%clk 0:00:06]} 47. Ra7 {[%clk 0:00:04]}  Kf5 {[%clk 0:00:05]} 48. Rxg7 {[%clk 0:00:03]}  Rh1+ {[%clk 0:00:03]} 49. Kd2 {[%clk 0:00:03]}  Rh2+ {[%clk 0:00:04]} 50. Ke3 {[%clk 0:00:04]}  Re2+ {[%clk 0:00:03]} 51. Kf3 {[%clk 0:00:04]}  Ra2 {[%clk 0:00:03]} 52. g4+ {[%clk 0:00:04]}  Kg5 {[%clk 0:00:02]} 53. Be7+ {[%clk 0:00:03]}  Kh6 {[%clk 0:00:03]} 54. Rg8 {[%clk 0:00:03]}  Kh7 {[%clk 0:00:03]} 55. Rf8 {[%clk 0:00:02]}  Kg7 {[%clk 0:00:03]} 56. Rb8 {[%clk 0:00:02]}  Kf7 {[%clk 0:00:02]} 57. Rb7 {[%clk 0:00:02]}  Bd5+ {[%clk 0:00:03]} 58. Kf4 {[%clk 0:00:02]}  Bxb7 {[%clk 0:00:03]} 59. Bc5 {[%clk 0:00:03]}  Bd5 {[%clk 0:00:04]} 60. Kg5 {[%clk 0:00:04]}  Bc4 {[%clk 0:00:05]} 0-1


[Site "https://www.chess.com"]

[Event "Titled Tuesday Blitz November 15 Early 2022"]
[White "Abdusattorov, Nodirbek"]
[Black "Yu, Yangyi"]
[WhiteFideId "14204118"]
[BlackFideId "8603820"]
[WhiteElo "2665"]
[BlackElo "2808"]
[Result "0-1"]
[Round "08"]
[TimeControl "180+1"]
[Date "2022.11.15"]
[WhiteClock "0:00:21"]
[BlackClock "0:00:08"]

1. a3 {[%clk 0:03:00]}  Nf6 {[%clk 0:02:58]} 2. Nf3 {[%clk 0:02:59]}  d5 {[%clk 0:02:52]} 3. d4 {[%clk 0:02:58]}  e6 {[%clk 0:02:51]} 4. c4 {[%clk 0:02:55]}  Nbd7 {[%clk 0:02:40]} 5. e3 {[%clk 0:02:53]}  b6 {[%clk 0:02:38]} 6. Nc3 {[%clk 0:02:52]}  Bb7 {[%clk 0:02:37]} 7. b3 {[%clk 0:02:50]}  c5 {[%clk 0:02:31]} 8. Bb2 {[%clk 0:02:46]}  cxd4 {[%clk 0:02:28]} 9. exd4 {[%clk 0:02:46]}  Bd6 {[%clk 0:02:27]} 10. Be2 {[%clk 0:02:43]}  Rc8 {[%clk 0:02:25]} 11. O-O {[%clk 0:02:39]}  O-O {[%clk 0:02:20]} 12. Rc1 {[%clk 0:02:27]}  dxc4 {[%clk 0:02:16]} 13. Bxc4 {[%clk 0:02:18]}  Bf4 {[%clk 0:01:40]} 14. Rc2 {[%clk 0:02:18]}  Ne4 {[%clk 0:01:40]} 15. Ne2 {[%clk 0:02:17]}  Bb8 {[%clk 0:01:39]} 16. Qd3 {[%clk 0:01:52]}  Nd6 {[%clk 0:01:31]} 17. Rfc1 {[%clk 0:01:42]}  b5 {[%clk 0:01:15]} 18. Bxe6 {[%clk 0:01:17]}  Rxc2 {[%clk 0:01:12]} 19. Qxc2 {[%clk 0:01:15]}  fxe6 {[%clk 0:01:05]} 20. Ne5 {[%clk 0:01:12]}  Nxe5 {[%clk 0:01:00]} 21. dxe5 {[%clk 0:01:13]}  Nf5 {[%clk 0:00:45]} 22. Ng3 {[%clk 0:01:03]}  Qd5 {[%clk 0:00:41]} 23. f3 {[%clk 0:00:56]}  Nxg3 {[%clk 0:00:24]} 24. hxg3 {[%clk 0:00:56]}  Rc8 {[%clk 0:00:18]} 25. Qb1 {[%clk 0:00:56]}  Bxe5 {[%clk 0:00:14]} 26. Re1 {[%clk 0:00:49]}  Bd4+ {[%clk 0:00:10]} 27. Bxd4 {[%clk 0:00:46]}  Qxd4+ {[%clk 0:00:11]} 28. Kh2 {[%clk 0:00:47]}  Rc5 {[%clk 0:00:09]} 29. g4 {[%clk 0:00:47]}  Bxf3 {[%clk 0:00:08]} 30. Rxe6 {[%clk 0:00:26]}  Qf4+ {[%clk 0:00:08]} 31. g3 {[%clk 0:00:21]}  Qd2+ {[%clk 0:00:07]} 32. Kh3 {[%clk 0:00:21]}  Qg2+ {[%clk 0:00:08]} 0-1


[Site "https://www.chess.com"]